[Event "*** Titled Tuesday Blitz"]
[Site "Chess.com"]
[Date "2018.01.02"]
[Round "4"]
[White "Blitzstream"]
[Black "Tash_Boy"]
[Result "1-0"]
[WhiteElo "2495"]
[BlackElo "2514"]
[TimeControl "180+2"]
[EndTime "13:54:08 PST"]
[Termination "Blitzstream won by resignation"]

1. e4 {[%clk 0:03:01.9]} 1... e5 {[%clk 0:03:00.2]} 2. Nf3 {[%clk 0:03:01.9]}
2... Nc6 {[%clk 0:03:01.7]} 3. Nc3 {[%clk 0:03:03.2]} 3... Nf6 {[%clk
0:03:01.2]} 4. Nxe5 {[%clk 0:03:03.5]} 4... Nxe5 {[%clk 0:03:00.9]} 5. d4 {[%clk
0:03:05.1]} 5... Ng6 {[%clk 0:02:51.7]} 6. e5 {[%clk 0:02:50.1]} 6... Ng8 {[%clk
0:02:52.2]} 7. Qf3 {[%clk 0:02:13.8]} 7... Nh4 {[%clk 0:02:00.1]} 8. Qe4 {[%clk
0:01:54.6]} 8... Nh6 {[%clk 0:01:53.7]} 9. Bc4 {[%clk 0:01:44.3]} 9... Be7
{[%clk 0:01:34.7]} 10. g3 {[%clk 0:01:19.8]} 10... Ng6 {[%clk 0:01:34.5]} 11. h4
{[%clk 0:01:19.3]} 11... d5 {[%clk 0:01:30.6]} 12. Nxd5 {[%clk 0:00:57.6]} 12...
Bf5 {[%clk 0:01:19.1]} 13. Qf3 {[%clk 0:00:56.7]} 13... c6 {[%clk 0:01:16.4]}
14. Nxe7 {[%clk 0:00:33.1]} 14... Nxe7 {[%clk 0:01:18.3]} 15. c3 {[%clk
0:00:33.2]} 15... Be6 {[%clk 0:01:12.9]} 16. Bxe6 {[%clk 0:00:30.9]} 16... fxe6
{[%clk 0:01:14.8]} 17. Bxh6 {[%clk 0:00:30.1]} 17... gxh6 {[%clk 0:01:15]} 18.
Qh5+ {[%clk 0:00:31.1]} 18... Kd7 {[%clk 0:01:15.2]} 19. Qxh6 {[%clk 0:00:32.2]}
19... Qf8 {[%clk 0:01:15.6]} 20. Qxf8 {[%clk 0:00:31.4]} 20... Raxf8 {[%clk
0:01:15.9]} 21. Ke2 {[%clk 0:00:30.8]} 21... h5 {[%clk 0:01:16.1]} 22. Rag1
{[%clk 0:00:30.6]} 22... Rhg8 {[%clk 0:01:17.1]} 23. Rg2 {[%clk 0:00:31.6]}
23... Nd5 {[%clk 0:01:15.9]} 24. Rgg1 {[%clk 0:00:29]} 24... Rf5 {[%clk
0:01:12.6]} 25. Rf1 {[%clk 0:00:28.8]} 25... c5 {[%clk 0:01:11.1]} 26. Rhg1
{[%clk 0:00:23]} 26... cxd4 {[%clk 0:01:10]} 27. cxd4 {[%clk 0:00:24.9]} 27...
Rg4 {[%clk 0:01:07.7]} 28. f4 {[%clk 0:00:18.9]} 28... Rf8 {[%clk 0:01:06.9]}
29. Kf3 {[%clk 0:00:19.1]} 29... Rfg8 {[%clk 0:01:05.7]} 30. Kf2 {[%clk
0:00:16.3]} 30... Ne7 {[%clk 0:01:02.5]} 31. Rd1 {[%clk 0:00:16.3]} 31... Nd5
{[%clk 0:01:01.4]} 32. Rc1 {[%clk 0:00:14.9]} 32... b6 {[%clk 0:00:53.2]} 33. a3
{[%clk 0:00:14]} 33... a5 {[%clk 0:00:52.6]} 34. Rcd1 {[%clk 0:00:13.7]} 34...
Kc6 {[%clk 0:00:52.1]} 35. Rc1+ {[%clk 0:00:14.4]} 35... Kb5 {[%clk 0:00:53.2]}
36. b3 {[%clk 0:00:14.6]} 36... Ne7 {[%clk 0:00:42.5]} 37. Rcd1 {[%clk
0:00:14.9]} 37... Rd8 {[%clk 0:00:42.2]} 38. Kf3 {[%clk 0:00:14.2]} 38... Nf5
{[%clk 0:00:42.3]} 39. d5 {[%clk 0:00:14.7]} 39... exd5 {[%clk 0:00:42.6]} 40.
Rg2 {[%clk 0:00:13.1]} 40... d4 {[%clk 0:00:40.3]} 41. Rd3 {[%clk 0:00:10.6]}
41... Kc6 {[%clk 0:00:37.3]} 42. Ke4 {[%clk 0:00:10.6]} 42... Ne3 {[%clk
0:00:34.4]} 43. Rg1 {[%clk 0:00:11.5]} 43... b5 {[%clk 0:00:22.9]} 44. Rxd4
{[%clk 0:00:10]} 44... Rxd4+ {[%clk 0:00:22.5]} 45. Kxd4 {[%clk 0:00:11.9]}
45... Nf5+ {[%clk 0:00:23.9]} 46. Ke4 {[%clk 0:00:12.7]} 46... Nxg3+ {[%clk
0:00:22.9]} 47. Kf3 {[%clk 0:00:13.5]} 47... Nf5 {[%clk 0:00:11.6]} 48. Rxg4
{[%clk 0:00:14.7]} 48... hxg4+ {[%clk 0:00:12.8]} 49. Kxg4 {[%clk 0:00:16.6]}
49... Ne3+ {[%clk 0:00:12.8]} 50. Kg5 {[%clk 0:00:17.8]} 50... a4 {[%clk
0:00:13.3]} 51. bxa4 {[%clk 0:00:18.5]} 51... bxa4 {[%clk 0:00:13.9]} 52. h5
{[%clk 0:00:20.2]} 52... Nc4 {[%clk 0:00:13.5]} 53. h6 {[%clk 0:00:21.5]} 53...
Nxa3 {[%clk 0:00:15]} 54. h7 {[%clk 0:00:23.1]} 54... Nc4 {[%clk 0:00:15.8]} 55.
h8=Q {[%clk 0:00:24.5]} 55... a3 {[%clk 0:00:17.1]} 56. e6 {[%clk 0:00:25.3]}
56... a2 {[%clk 0:00:17.2]} 57. Qa8+ {[%clk 0:00:25.5]} 57... Kd6 {[%clk
0:00:16.7]} 58. Qxa2 {[%clk 0:00:27]} 58... Ne3 {[%clk 0:00:18.4]} 59. f5 {[%clk
0:00:27.7]} 59... Nd5 {[%clk 0:00:20.3]} 60. Qxd5+ {[%clk 0:00:27.5]} 60... Kxd5
{[%clk 0:00:22.2]} 61. e7 {[%clk 0:00:29]} 1-0

[Event "*** Titled Tuesday Blitz"]
[Site "Chess.com"]
[Date "2018.01.02"]
[Round "4"]
[White "chessdjw"]
[Black "oskariot"]
[Result "0-1"]
[WhiteElo "2507"]
[BlackElo "2403"]
[TimeControl "180+2"]
[EndTime "13:54:15 PST"]
[Termination "oskariot won by resignation"]

1. Nf3 {[%clk 0:03:01.9]} 1... d5 {[%clk 0:02:59.9]} 2. g3 {[%clk 0:03:03.1]}
2... Bg4 {[%clk 0:02:58.8]} 3. Bg2 {[%clk 0:03:03.8]} 3... Nd7 {[%clk
0:02:58.9]} 4. O-O {[%clk 0:03:04.8]} 4... e6 {[%clk 0:02:58]} 5. h3 {[%clk
0:02:57.9]} 5... Bh5 {[%clk 0:02:56]} 6. d3 {[%clk 0:02:52.7]} 6... Ngf6 {[%clk
0:02:53]} 7. Nbd2 {[%clk 0:02:48.3]} 7... Be7 {[%clk 0:02:46.1]} 8. c3 {[%clk
0:02:49.4]} 8... O-O {[%clk 0:02:46.1]} 9. Qc2 {[%clk 0:02:48.8]} 9... h6 {[%clk
0:02:39.4]} 10. a4 {[%clk 0:02:49.1]} 10... Bg6 {[%clk 0:02:37.8]} 11. a5 {[%clk
0:02:49.3]} 11... c5 {[%clk 0:02:37.8]} 12. a6 {[%clk 0:02:48.8]} 12... b5
{[%clk 0:02:37.2]} 13. e4 {[%clk 0:02:48.7]} 13... c4 {[%clk 0:02:30.2]} 14. Nh4
{[%clk 0:02:40.5]} 14... Bh7 {[%clk 0:02:28.6]} 15. Re1 {[%clk 0:02:19.5]} 15...
Nc5 {[%clk 0:02:23.5]} 16. dxc4 {[%clk 0:02:02.3]} 16... bxc4 {[%clk 0:02:21.5]}
17. b4 {[%clk 0:02:00.3]} 17... Ncxe4 {[%clk 0:02:13.8]} 18. Nxe4 {[%clk
0:02:01]} 18... Nxe4 {[%clk 0:02:13.6]} 19. Nf3 {[%clk 0:01:39.9]} 19... Bf6
{[%clk 0:02:11.1]} 20. Nd4 {[%clk 0:01:35.9]} 20... Nxg3 {[%clk 0:02:07.8]} 21.
Qb2 {[%clk 0:01:33.9]} 21... Nf5 {[%clk 0:01:59]} 22. Nc6 {[%clk 0:01:34.3]}
22... Qc7 {[%clk 0:01:54.7]} 23. b5 {[%clk 0:01:35.2]} 23... Qb6 {[%clk
0:01:27.2]} 24. Bd2 {[%clk 0:01:29]} 24... Nd6 {[%clk 0:01:24.6]} 25. Ra5 {[%clk
0:01:15.4]} 25... Rfc8 {[%clk 0:01:21.6]} 26. Be3 {[%clk 0:01:10.7]} 26... Qc7
{[%clk 0:01:15.1]} 27. Qb4 {[%clk 0:01:00.3]} 27... Nxb5 {[%clk 0:01:10.6]} 28.
Rxb5 {[%clk 0:00:47.8]} 28... Qxc6 {[%clk 0:01:10.6]} 29. Ra1 {[%clk 0:00:46.3]}
29... Bxc3 {[%clk 0:01:09.5]} 30. Qxc3 {[%clk 0:00:45.9]} 30... Qxb5 {[%clk
0:01:10.7]} 31. Bd4 {[%clk 0:00:47.6]} 31... Qb3 {[%clk 0:01:09]} 32. Qe1 {[%clk
0:00:47.8]} 32... Be4 {[%clk 0:00:57]} 33. f3 {[%clk 0:00:43.3]} 33... Bf5
{[%clk 0:00:52.5]} 34. Qg3 {[%clk 0:00:42]} 34... Bg6 {[%clk 0:00:36.7]} 35. Qe5
{[%clk 0:00:41.6]} 35... f6 {[%clk 0:00:36.8]} 36. Qxe6+ {[%clk 0:00:42.8]}
36... Bf7 {[%clk 0:00:38.5]} 37. Qg4 {[%clk 0:00:40.8]} 37... Rc6 {[%clk
0:00:27]} 38. Re1 {[%clk 0:00:35.2]} 38... Re8 {[%clk 0:00:25.7]} 39. Rxe8+
{[%clk 0:00:30.2]} 39... Bxe8 {[%clk 0:00:26.6]} 40. f4 {[%clk 0:00:31.7]} 40...
Bf7 {[%clk 0:00:25.2]} 41. Qd7 {[%clk 0:00:31.3]} 41... Qd1+ {[%clk 0:00:23]}
42. Kh2 {[%clk 0:00:32.1]} 42... Qxd4 {[%clk 0:00:22.8]} 43. Qxc6 {[%clk
0:00:32.7]} 43... Qxf4+ {[%clk 0:00:23.4]} 44. Kh1 {[%clk 0:00:34.2]} 44... Qc1+
{[%clk 0:00:24.4]} 45. Kh2 {[%clk 0:00:35.3]} 45... Qf4+ {[%clk 0:00:26]} 46.
Kh1 {[%clk 0:00:36.5]} 46... Qd4 {[%clk 0:00:16.2]} 47. Qc8+ {[%clk 0:00:34.9]}
47... Kh7 {[%clk 0:00:16.8]} 48. Qf5+ {[%clk 0:00:36.5]} 48... Bg6 {[%clk
0:00:17.8]} 49. Qd7 {[%clk 0:00:34.7]} 49... Be4 {[%clk 0:00:15.4]} 50. Bxe4+
{[%clk 0:00:34]} 50... Qxe4+ {[%clk 0:00:16.2]} 51. Kh2 {[%clk 0:00:35.5]} 51...
c3 {[%clk 0:00:17.2]} 52. Qxa7 {[%clk 0:00:35.4]} 52... c2 {[%clk 0:00:18.6]}
53. Qc7 {[%clk 0:00:35.3]} 53... Qe2+ {[%clk 0:00:17]} 54. Kg3 {[%clk
0:00:35.6]} 54... Qe3+ {[%clk 0:00:18.2]} 55. Kg4 {[%clk 0:00:35.7]} 55... c1=Q
{[%clk 0:00:20.1]} 56. Qxc1 {[%clk 0:00:35.2]} 56... Qxc1 {[%clk 0:00:21.1]} 57.
a7 {[%clk 0:00:37.1]} 57... Qa1 {[%clk 0:00:22.3]} 58. h4 {[%clk 0:00:37.4]}
58... Qxa7 {[%clk 0:00:23]} 59. Kh5 {[%clk 0:00:39.3]} 59... d4 {[%clk
0:00:23.6]} 60. Kg4 {[%clk 0:00:40.4]} 60... d3 {[%clk 0:00:25.2]} 61. Kh5
{[%clk 0:00:42.3]} 61... d2 {[%clk 0:00:26.5]} 62. Kg4 {[%clk 0:00:44.2]} 62...
d1=Q+ {[%clk 0:00:27.9]} 63. Kf5 {[%clk 0:00:46.1]} 63... Qg4+ {[%clk
0:00:27.4]} 64. Kxg4 {[%clk 0:00:46.7]} 64... Kg6 {[%clk 0:00:29]} 65. h5+
{[%clk 0:00:47.9]} 65... Kf7 {[%clk 0:00:30.1]} 66. Kf5 {[%clk 0:00:49.8]} 66...
Qb7 {[%clk 0:00:30.8]} 67. Kg4 {[%clk 0:00:51]} 67... Ke6 {[%clk 0:00:32.7]} 68.
Kf4 {[%clk 0:00:51]} 68... f5 {[%clk 0:00:34.1]} 69. Ke3 {[%clk 0:00:51.3]}
69... Kf6 {[%clk 0:00:36]} 70. Kf4 {[%clk 0:00:52.7]} 70... Qf7 {[%clk
0:00:37.7]} 71. Kg3 {[%clk 0:00:53.8]} 71... Qg8 {[%clk 0:00:39.6]} 72. Kf4
{[%clk 0:00:55.7]} 72... Qh8 {[%clk 0:00:41.5]} 73. Kg3 {[%clk 0:00:57.4]} 73...
Kg5 {[%clk 0:00:43.4]} 74. Kh3 {[%clk 0:00:58.4]} 74... Kxh5 {[%clk 0:00:44.8]}
0-1

[Event "*** Titled Tuesday Blitz"]
[Site "Chess.com"]
[Date "2018.01.02"]
[Round "4"]
[White "asms9699"]
[Black "Kacparov"]
[Result "1-0"]
[WhiteElo "2482"]
[BlackElo "2657"]
[TimeControl "180+2"]
[EndTime "13:55:06 PST"]
[Termination "asms9699 won by resignation"]

1. c4 {[%clk 0:03:01.9]} 1... e6 {[%clk 0:02:58.8]} 2. g3 {[%clk 0:03:02.5]}
2... d5 {[%clk 0:02:59.8]} 3. Bg2 {[%clk 0:03:03.6]} 3... Nf6 {[%clk 0:03:01.2]}
4. Nf3 {[%clk 0:03:05.1]} 4... dxc4 {[%clk 0:03:02.1]} 5. O-O {[%clk 0:03:04.2]}
5... Nbd7 {[%clk 0:03:02.4]} 6. a4 {[%clk 0:03:02.1]} 6... a5 {[%clk 0:02:57.6]}
7. Na3 {[%clk 0:03:01.6]} 7... Nb6 {[%clk 0:02:56.8]} 8. Qc2 {[%clk 0:03:02.6]}
8... Bxa3 {[%clk 0:02:57.2]} 9. bxa3 {[%clk 0:03:03.1]} 9... O-O {[%clk
0:02:58.2]} 10. Bb2 {[%clk 0:03:02.1]} 10... h6 {[%clk 0:02:54.9]} 11. Ne5
{[%clk 0:03:01.1]} 11... Bd7 {[%clk 0:02:39]} 12. Nxd7 {[%clk 0:02:46.9]} 12...
Qxd7 {[%clk 0:02:39.2]} 13. Bxf6 {[%clk 0:02:47]} 13... gxf6 {[%clk 0:02:41.1]}
14. Bxb7 {[%clk 0:02:47.7]} 14... Rab8 {[%clk 0:02:36.7]} 15. Bf3 {[%clk
0:02:48.1]} 15... Qxa4 {[%clk 0:02:32.6]} 16. Qc3 {[%clk 0:02:48.2]} 16... Nd7
{[%clk 0:02:25.5]} 17. Rac1 {[%clk 0:02:42.2]} 17... Ne5 {[%clk 0:02:25.1]} 18.
Qe3 {[%clk 0:02:36.5]} 18... Kg7 {[%clk 0:02:23.9]} 19. Bh5 {[%clk 0:02:21]}
19... Rb3 {[%clk 0:02:22.9]} 20. Qc5 {[%clk 0:02:15.2]} 20... Qxa3 {[%clk
0:02:09.3]} 21. Qxc7 {[%clk 0:02:15.1]} 21... Rb5 {[%clk 0:01:55.8]} 22. f4
{[%clk 0:01:58.5]} 22... Nd3 {[%clk 0:01:55.5]} 23. exd3 {[%clk 0:01:42.8]}
23... Rxh5 {[%clk 0:01:55.8]} 24. dxc4 {[%clk 0:01:42.1]} 24... Qd3 {[%clk
0:01:55.1]} 25. Rf2 {[%clk 0:01:34.1]} 25... Qd4 {[%clk 0:01:56]} 26. h4 {[%clk
0:01:16.1]} 26... a4 {[%clk 0:01:50.4]} 27. c5 {[%clk 0:01:14.2]} 27... a3
{[%clk 0:01:48.9]} 28. Qa5 {[%clk 0:01:13.7]} 28... Qb2 {[%clk 0:01:38.7]} 29.
Qc3 {[%clk 0:00:49.2]} 29... Rb8 {[%clk 0:01:24.6]} 30. d4 {[%clk 0:00:42.6]}
30... Qb5 {[%clk 0:01:05.9]} 31. Qxa3 {[%clk 0:00:39.7]} 31... Rd5 {[%clk
0:01:06.8]} 32. Qc3 {[%clk 0:00:33.6]} 32... Rbd8 {[%clk 0:01:06.6]} 33. c6
{[%clk 0:00:31.3]} 33... Rxd4 {[%clk 0:01:01.7]} 34. c7 {[%clk 0:00:32.2]} 34...
Rd1+ {[%clk 0:01:02.5]} 35. Rxd1 {[%clk 0:00:33.3]} 35... Rxd1+ {[%clk
0:01:03.5]} 36. Kh2 {[%clk 0:00:34.6]} 36... Qb7 {[%clk 0:01:01.1]} 37. Rg2
{[%clk 0:00:25.2]} 37... Qb1 {[%clk 0:00:57.7]} 38. g4 {[%clk 0:00:15.7]} 38...
Rh1+ {[%clk 0:00:47.4]} 39. Kg3 {[%clk 0:00:16.6]} 39... Rd1 {[%clk 0:00:22.3]}
40. c8=Q {[%clk 0:00:17]} 40... Rd3+ {[%clk 0:00:23.5]} 41. Qxd3 {[%clk
0:00:17.9]} 41... Qxd3+ {[%clk 0:00:25.4]} 42. Kh2 {[%clk 0:00:19.3]} 42... Qf3
{[%clk 0:00:26.3]} 43. Qc1 {[%clk 0:00:19.7]} 43... e5 {[%clk 0:00:25.3]} 44.
fxe5 {[%clk 0:00:19.9]} 44... fxe5 {[%clk 0:00:27.2]} 45. Qd2 {[%clk 0:00:20.5]}
45... e4 {[%clk 0:00:27.7]} 46. Qf2 {[%clk 0:00:21.2]} 46... Qd3 {[%clk
0:00:28]} 47. Qf4 {[%clk 0:00:21.5]} 47... e3 {[%clk 0:00:29]} 48. Qe5+ {[%clk
0:00:22.5]} 48... Kg8 {[%clk 0:00:29.9]} 49. g5 {[%clk 0:00:22.8]} 49... h5
{[%clk 0:00:30.6]} 50. g6 {[%clk 0:00:23.5]} 50... fxg6 {[%clk 0:00:31.8]} 51.
Qe6+ {[%clk 0:00:24.6]} 51... Kg7 {[%clk 0:00:33.1]} 52. Ra2 {[%clk 0:00:21.7]}
52... Qd4 {[%clk 0:00:31.8]} 53. Rc2 {[%clk 0:00:20.6]} 53... Qxh4+ {[%clk
0:00:31.7]} 54. Kg2 {[%clk 0:00:20.5]} 54... Qf4 {[%clk 0:00:31.8]} 55. Re2
{[%clk 0:00:20.5]} 55... Qg5+ {[%clk 0:00:30.1]} 56. Kf3 {[%clk 0:00:20.3]}
56... h4 {[%clk 0:00:30.7]} 57. Qxe3 {[%clk 0:00:20.1]} 57... Qg3+ {[%clk
0:00:31.4]} 58. Ke4 {[%clk 0:00:21.4]} 58... Qg4+ {[%clk 0:00:32.5]} 59. Kd3
{[%clk 0:00:22.4]} 59... Qf5+ {[%clk 0:00:30]} 60. Qe4 {[%clk 0:00:23.6]} 60...
Qb5+ {[%clk 0:00:30.6]} 61. Qc4 {[%clk 0:00:24.7]} 61... Qf5+ {[%clk 0:00:31.5]}
62. Kc3 {[%clk 0:00:25.5]} 62... h3 {[%clk 0:00:31.5]} 63. Qd4+ {[%clk
0:00:26.2]} 63... Kg8 {[%clk 0:00:28.9]} 64. Re8+ {[%clk 0:00:25.8]} 64... Kf7
{[%clk 0:00:29.9]} 65. Re2 {[%clk 0:00:21.9]} 65... Qa5+ {[%clk 0:00:27.4]} 66.
Kd3 {[%clk 0:00:22.2]} 66... Qf5+ {[%clk 0:00:27.5]} 67. Ke3 {[%clk 0:00:21.9]}
67... Qe6+ {[%clk 0:00:21.2]} 68. Kf3 {[%clk 0:00:20.3]} 68... Qb3+ {[%clk
0:00:21.3]} 69. Qe3 {[%clk 0:00:20.7]} 69... Qd5+ {[%clk 0:00:22]} 70. Kg3
{[%clk 0:00:21.2]} 70... Qd7 {[%clk 0:00:17.1]} 71. Rf2+ {[%clk 0:00:20.1]}
71... Kg8 {[%clk 0:00:17.9]} 72. Qf4 {[%clk 0:00:19.5]} 72... Qd3+ {[%clk
0:00:12.8]} 73. Kh2 {[%clk 0:00:20.3]} 73... Kh7 {[%clk 0:00:09.3]} 74. Qf7+
{[%clk 0:00:19.8]} 74... Kh6 {[%clk 0:00:10.4]} 75. Qf8+ {[%clk 0:00:20.5]}
75... Kg5 {[%clk 0:00:10.2]} 76. Qf4+ {[%clk 0:00:20.9]} 76... Kh5 {[%clk
0:00:10.9]} 77. Qf3+ {[%clk 0:00:22.4]} 77... Qxf3 {[%clk 0:00:11.5]} 78. Rxf3
{[%clk 0:00:24.3]} 78... Kg4 {[%clk 0:00:12.8]} 79. Rxh3 {[%clk 0:00:25.1]}
79... g5 {[%clk 0:00:14.7]} 1-0

[Event "*** Titled Tuesday Blitz"]
[Site "Chess.com"]
[Date "2018.01.02"]
[Round "4"]
[White "ChessicallyInclined"]
[Black "jposthuma"]
[Result "0-1"]
[WhiteElo "2213"]
[BlackElo "2342"]
[TimeControl "180+2"]
[EndTime "13:55:09 PST"]
[Termination "jposthuma won by resignation"]

1. d4 {[%clk 0:03:01.9]} 1... Nf6 {[%clk 0:02:59.5]} 2. c4 {[%clk 0:03:00.5]}
2... c5 {[%clk 0:02:59.5]} 3. d5 {[%clk 0:02:58.1]} 3... b5 {[%clk 0:02:59.4]}
4. cxb5 {[%clk 0:02:58.6]} 4... a6 {[%clk 0:02:59.7]} 5. f3 {[%clk 0:02:59.4]}
5... e6 {[%clk 0:02:53.3]} 6. e4 {[%clk 0:02:53.5]} 6... c4 {[%clk 0:02:53.7]}
7. Bxc4 {[%clk 0:02:50.8]} 7... axb5 {[%clk 0:02:54.2]} 8. Bxb5 {[%clk
0:02:47.9]} 8... Qa5+ {[%clk 0:02:55.4]} 9. Nc3 {[%clk 0:02:48]} 9... Bb4 {[%clk
0:02:56.7]} 10. Qd3 {[%clk 0:02:45.1]} 10... Na6 {[%clk 0:02:57.6]} 11. Bd2
{[%clk 0:02:37]} 11... Nc5 {[%clk 0:02:47.6]} 12. Qc4 {[%clk 0:02:35.5]} 12...
exd5 {[%clk 0:02:48.5]} 13. exd5 {[%clk 0:02:33.4]} 13... O-O {[%clk 0:02:23.4]}
14. a3 {[%clk 0:02:26.8]} 14... Nb7 {[%clk 0:00:44.3]} 15. Ra2 {[%clk
0:02:09.8]} 15... Bxc3 {[%clk 0:00:21]} 16. Bxc3 {[%clk 0:02:07.2]} 16... Nd6
{[%clk 0:00:09.9]} 17. Bxa5 {[%clk 0:02:01.4]} 17... Nxc4 {[%clk 0:00:10.9]} 18.
Bxc4 {[%clk 0:02:02.7]} 18... Rxa5 {[%clk 0:00:11.7]} 19. b4 {[%clk 0:02:02.8]}
19... Ra7 {[%clk 0:00:08.4]} 20. Ne2 {[%clk 0:02:00.9]} 20... Bb7 {[%clk
0:00:08.9]} 21. Nc3 {[%clk 0:02:01.6]} 21... Rfa8 {[%clk 0:00:08]} 22. Nb5
{[%clk 0:01:59.7]} 22... Ra4 {[%clk 0:00:06.3]} 23. O-O {[%clk 0:01:41.2]} 23...
Bxd5 {[%clk 0:00:06.3]} 24. Bxd5 {[%clk 0:01:38.8]} 24... Nxd5 {[%clk
0:00:08.2]} 25. Rd2 {[%clk 0:01:33.3]} 25... Ne3 {[%clk 0:00:07]} 26. Rc1 {[%clk
0:01:29.6]} 26... d5 {[%clk 0:00:07.6]} 27. Nc7 {[%clk 0:01:13.8]} 27... Rc8
{[%clk 0:00:06.3]} 28. Kf2 {[%clk 0:01:02.7]} 28... Rxa3 {[%clk 0:00:06.4]} 29.
b5 {[%clk 0:00:39.6]} 29... Rb3 {[%clk 0:00:04.8]} 30. b6 {[%clk 0:00:21.1]}
30... h5 {[%clk 0:00:04.8]} 31. Re1 {[%clk 0:00:11.7]} 31... Nc4 {[%clk
0:00:04.2]} 32. Rxd5 {[%clk 0:00:12.4]} 32... Nxb6 {[%clk 0:00:04.6]} 33. Rc5
{[%clk 0:00:08.7]} 33... Rb2+ {[%clk 0:00:04.9]} 34. Kg3 {[%clk 0:00:09]} 34...
Nd7 {[%clk 0:00:05.7]} 35. Rcc1 {[%clk 0:00:06.2]} 35... Nf6 {[%clk 0:00:04.7]}
36. Na6 {[%clk 0:00:04.5]} 36... h4+ {[%clk 0:00:05.5]} 37. Kh3 {[%clk
0:00:05.5]} 37... Ra8 {[%clk 0:00:06]} 38. Nc7 {[%clk 0:00:05.6]} 38... Raa2
{[%clk 0:00:06.1]} 39. Rg1 {[%clk 0:00:06.1]} 39... Nh5 {[%clk 0:00:07]} 40.
Kxh4 {[%clk 0:00:06.4]} 40... Nf4 {[%clk 0:00:08]} 41. g4 {[%clk 0:00:06.8]}
41... Ne2 {[%clk 0:00:07.2]} 42. Rge1 {[%clk 0:00:06.9]} 42... Nxc1 {[%clk
0:00:08.1]} 43. Rxc1 {[%clk 0:00:08.8]} 43... Rxh2+ {[%clk 0:00:09]} 44. Kg5
{[%clk 0:00:09.9]} 44... Ra5+ {[%clk 0:00:06.6]} 45. Kf4 {[%clk 0:00:10.1]}
45... Rb2 {[%clk 0:00:06.8]} 46. Ne8 {[%clk 0:00:08.7]} 46... Rb8 {[%clk
0:00:06.8]} 47. Nd6 {[%clk 0:00:09.4]} 47... Rb4+ {[%clk 0:00:07.1]} 48. Ne4
{[%clk 0:00:10]} 48... Ra3 {[%clk 0:00:06]} 49. Rf1 {[%clk 0:00:08]} 49... g6
{[%clk 0:00:05.9]} 50. Ke5 {[%clk 0:00:07.1]} 50... Kg7 {[%clk 0:00:06.7]} 51.
Kf4 {[%clk 0:00:07.3]} 51... Ra5 {[%clk 0:00:05.1]} 52. g5 {[%clk 0:00:07.2]}
52... Rf5+ {[%clk 0:00:05.2]} 53. Ke3 {[%clk 0:00:05.8]} 53... Re5 {[%clk
0:00:03.7]} 54. Kf4 {[%clk 0:00:05.7]} 54... Rd5 {[%clk 0:00:03.7]} 55. Ke3
{[%clk 0:00:06.2]} 55... Ra4 {[%clk 0:00:03.9]} 56. Rf2 {[%clk 0:00:05.7]} 56...
Rb5 {[%clk 0:00:04.6]} 57. Kf4 {[%clk 0:00:04.9]} 57... Rb3 {[%clk 0:00:04.8]}
58. Kg4 {[%clk 0:00:02.4]} 58... Kf8 {[%clk 0:00:04.6]} 59. Kf4 {[%clk
0:00:03.9]} 59... Ke7 {[%clk 0:00:05.8]} 60. Kg4 {[%clk 0:00:05.3]} 60... Ke6
{[%clk 0:00:07.2]} 61. Kf4 {[%clk 0:00:06.8]} 61... Kd5 {[%clk 0:00:08.3]} 62.
Rd2+ {[%clk 0:00:08]} 62... Kc6 {[%clk 0:00:08.7]} 63. Rc2+ {[%clk 0:00:09]}
63... Kb6 {[%clk 0:00:08.8]} 64. Rd2 {[%clk 0:00:09.5]} 64... Raa3 {[%clk
0:00:09]} 65. Rd6+ {[%clk 0:00:07.6]} 65... Kc7 {[%clk 0:00:10]} 66. Rf6 {[%clk
0:00:03.7]} 66... Rxf3+ {[%clk 0:00:10.8]} 67. Ke5 {[%clk 0:00:05.3]} 67... Kd7
{[%clk 0:00:10]} 68. Rd6+ {[%clk 0:00:04.1]} 68... Ke7 {[%clk 0:00:10.8]} 69.
Rd5 {[%clk 0:00:02.7]} 69... Rf5+ {[%clk 0:00:11.5]} 70. Kd4 {[%clk 0:00:04.1]}
70... Rxd5+ {[%clk 0:00:11.8]} 71. Kxd5 {[%clk 0:00:06]} 71... Ra5+ {[%clk
0:00:12.9]} 72. Kd4 {[%clk 0:00:07.5]} 72... Ke6 {[%clk 0:00:13.5]} 73. Ng3
{[%clk 0:00:05.5]} 73... Rxg5 {[%clk 0:00:13.5]} 74. Ne4 {[%clk 0:00:05.9]}
74... Rg4 {[%clk 0:00:14.6]} 0-1